fUSD/lending_fUSD_20250921
["ID","MTS","AMOUNT","RATE_DAILY","PERIOD"]
[386598960,1758413442847,-412.57,0.00021917,2]
[386598962,1758413442856,-400.0,0.00021917,2]
[386598964,1758413442866,-2010.38,0.00021917,2]
[386598966,1758413442875,-400.0,0.00021917,2]
[386598967,1758413442884,-915.03,0.00021917,2]
[386598969,1758413442893,-400.0,0.00021917,2]
[386598970,1758413442902,-1592.16,0.00021917,2]
[386598971,1758413442911,-400.0,0.00021917,2]
[386598972,1758413442920,-400.0,0.00021917,2]
[386598975,1758413442929,-2977.11,0.00021917,2]
[386598976,1758413442938,-1903.04,0.00021917,2]
[386598977,1758413442948,-8117.13,0.00021917,2]
[386598979,1758413442957,-1040.1,0.00021917,2]
[386598981,1758413442966,-400.0,0.00021917,2]
[386598983,1758413442976,-968.98,0.00021917,2]
[386598986,1758413442985,-400.0,0.00021917,2]
[386598989,1758413442995,-863.66,0.00021917,2]
[386598990,1758413443004,-428.22,0.00021917,2]
[386598991,1758413443013,-900.2,0.00021917,2]
[386598992,1758413443022,-400.0,0.00021917,2]
[386598993,1758413443031,-400.0,0.00021917,2]
[386598994,1758413443040,-1794.99,0.00021917,2]
[386598995,1758413443049,-400.0,0.00021917,2]
[386598996,1758413443059,-1239.52,0.00021917,2]
[386598997,1758413443068,-400.0,0.00021917,2]
[386598998,1758413443077,-1065.82,0.00021917,2]
[386598999,1758413443086,-544.72,0.00021917,2]
[386599000,1758413443095,-188.46719608,0.00021917,2]
[386599001,1758413443104,-400.0,0.00021917,2]
[386599002,1758413443113,-400.0,0.00021917,2]
[386599003,1758413443123,-400.0,0.00021917,2]
[386599004,1758413443132,-930.97,0.00021917,2]
[386599005,1758413443141,-440.29742246,0.00021917,2]
[386599006,1758413443150,-1368.4,0.00021917,2]
[386599007,1758413443159,-1702.92,0.00021917,2]
[386599008,1758413443168,-400.0,0.00021917,2]
[386599009,1758413443177,-400.0,0.00021917,2]
[386599010,1758413443186,-400.0,0.00021917,2]
[386599011,1758413443196,-400.0,0.00021917,2]
[386599012,1758413443205,-874.83,0.00021917,2]
[386599013,1758413443215,-2664.56,0.00021917,2]
[386599014,1758413443224,-1518.49,0.00021917,2]
[386599015,1758413443235,-400.0,0.00021917,2]
[386599016,1758413443244,-400.0,0.00021917,2]
[386599017,1758413443254,-400.0,0.00021917,2]
[386599018,1758413443263,-400.0,0.00021917,2]
[386599019,1758413443273,-1153.23,0.00021917,2]
[386599020,1758413443282,-400.0,0.00021917,2]
[386599021,1758413443291,-407.64,0.00021917,2]
[386599022,1758413443301,-1249.69,0.00021917,2]
[386599023,1758413443311,-426.04,0.00021917,2]
[386599024,1758413443320,-736.65,0.00021917,2]
[386599025,1758413443329,-403.44,0.00021917,2]
[386599026,1758413443339,-992.0,0.00021917,2]
[386599027,1758413443350,-400.0,0.00021917,2]
[386599028,1758413443360,-1228.12,0.00021917,2]
[386599029,1758413443369,-400.0,0.00021917,2]
[386599030,1758413443379,-1606.2,0.00021917,2]
[386599031,1758413443388,-594.33,0.00021917,2]
[386599032,1758413443398,-400.0,0.00021917,2]
[386599033,1758413443408,-739.01,0.00021917,2]
[386599034,1758413443417,-400.0,0.00021917,2]
[386599035,1758413443427,-400.0,0.00021917,2]
[386599036,1758413443436,-400.0,0.00021917,2]
[386599037,1758413443447,-400.0,0.00021917,2]
[386599038,1758413443579,-1384.68,0.00021917,2]
[386599040,1758413443596,-1170.96,0.00021917,2]
[386599042,1758413443607,-400.0,0.00021917,2]
[386599043,1758413443616,-400.0,0.00021917,2]
[386599044,1758413443625,-438.1,0.00021917,2]
[386599045,1758413443634,-1036.29,0.00021917,2]
[386599046,1758413443643,-400.0,0.00021917,2]
[386599047,1758413443653,-400.0,0.00021917,2]
[386599048,1758413443662,-400.0,0.00021917,2]
[386599049,1758413443672,-1398.43,0.00021917,2]
[386599050,1758413443681,-400.0,0.00021917,2]
[386599051,1758413443692,-400.0,0.00021917,2]
[386599052,1758413443702,-400.0,0.00021917,2]
[386599053,1758413443712,-801.59,0.00021917,2]
[386599054,1758413443722,-164.102097,0.00021917,2]
[386599055,1758413443731,-400.0,0.00021917,2]
[386599056,1758413443742,-400.0,0.00021917,2]
[386599058,1758413443751,-158.170864,0.00021917,2]
[386599059,1758413443760,-400.0,0.00021917,2]
[386599060,1758413443777,-400.0,0.00021917,2]
[386599061,1758413443786,-164.097581,0.00021917,2]
[386599062,1758413443796,-162.89427,0.00021917,2]
[386599063,1758413443806,-768.57,0.00021917,2]
[386599064,1758413443815,-400.0,0.00021917,2]
[386599065,1758413443824,-400.0,0.00021917,2]
[386599066,1758413443834,-420.67,0.00021917,2]
[386599067,1758413443843,-1130.7,0.00021917,2]
[386599068,1758413443853,-400.0,0.00021917,2]
[386599069,1758413443862,-949.25,0.00021917,2]
[386599070,1758413443871,-250.295991,0.00021917,2]
[386599071,1758413443880,-400.0,0.00021917,2]
[386599072,1758413443889,-400.0,0.00021917,2]
[386599073,1758413443899,-400.0,0.00021917,2]
[386599074,1758413443908,-400.0,0.00021917,2]
[386599075,1758413443918,-3344.02,0.00021917,2]
[386599076,1758413443927,-402.81,0.00021917,2]
[386599077,1758413443936,-400.0,0.00021917,2]
[386599078,1758413443946,-1038.16,0.00021917,2]
[386599079,1758413443955,-932.33,0.00021917,2]
[386599080,1758413443964,-500.0,0.00021917,2]
[386599081,1758413443974,-157.26269,0.00021917,2]
[386599082,1758413443984,-549.57,0.00021917,2]
[386599083,1758413443993,-400.0,0.00021917,2]
[386599084,1758413444003,-400.0,0.00021917,2]
[386599085,1758413444012,-400.0,0.00021917,2]
[386599086,1758413444021,-400.0,0.00021917,2]
[386599087,1758413444031,-898.68,0.00021917,2]
[386599088,1758413444040,-400.0,0.00021917,2]
[386599089,1758413444049,-400.0,0.00021917,2]
[386599090,1758413444059,-400.0,0.00021917,2]
[386599091,1758413444068,-1602.2,0.00021917,2]
[386599092,1758413444077,-400.0,0.00021917,2]
[386599093,1758413444087,-766.86,0.00021917,2]
[386599094,1758413444096,-604.58,0.00021917,2]
[386599095,1758413444105,-864.96,0.00021917,2]
[386599096,1758413444115,-1239.7,0.00021917,2]
[386599097,1758413444124,-400.0,0.00021917,2]
[386599098,1758413444133,-400.0,0.00021917,2]
[386599099,1758413444143,-936.71,0.00021917,2]
[386599100,1758413444152,-960.33,0.00021917,2]
[386599101,1758413444162,-400.0,0.00021917,2]
[386599102,1758413444171,-400.0,0.00021917,2]
[386599103,1758413444181,-669.87,0.00021917,2]
[386599104,1758413444190,-400.0,0.00021917,2]
[386599105,1758413444200,-400.0,0.00021917,2]
[386599106,1758413444209,-400.0,0.00021917,2]
[386599107,1758413444219,-400.0,0.00021917,2]
[386599108,1758413444228,-672.72,0.00021917,2]
[386599109,1758413444238,-400.0,0.00021917,2]
[386599110,1758413444248,-1722.68,0.00021917,2]
[386599111,1758413444257,-489.74,0.00021917,2]
[386599112,1758413444267,-1330.48,0.00021917,2]
[386599113,1758413444276,-400.0,0.00021917,2]
[386599114,1758413444286,-400.0,0.00021917,2]
[386599115,1758413444296,-400.0,0.00021917,2]
[386599116,1758413444305,-1294.74,0.00021917,2]
[386599117,1758413444315,-332.70400299,0.00021917,2]
[386599118,1758413444324,-400.0,0.00021917,2]
[386599119,1758413444333,-1387.74,0.00021917,2]
[386599120,1758413444343,-592.22,0.00021917,2]
[386599121,1758413444352,-1035.47,0.00021917,2]
[386599122,1758413444362,-400.0,0.00021917,2]
[386599123,1758413444371,-1626.14,0.00021917,2]
[386599124,1758413444381,-1669.92,0.00021917,2]
[386599125,1758413444390,-400.0,0.00021917,2]
[386599126,1758413444400,-473.96,0.00021917,2]
[386599127,1758413444410,-1894.83,0.00021917,2]
[386599128,1758413444419,-400.0,0.00021917,2]
[386599129,1758413444429,-854.7,0.00021917,2]
[386599130,1758413444438,-400.0,0.00021917,2]
[386599131,1758413444448,-421.29,0.00021917,2]
[386599132,1758413444458,-400.0,0.00021917,2]
[386599133,1758413444468,-400.0,0.00021917,2]
[386599134,1758413444477,-1270.42,0.00021917,2]
[386599135,1758413444487,-400.0,0.00021917,2]
[386599136,1758413444496,-400.0,0.00021917,2]
[386599137,1758413444506,-990.79,0.00021917,2]
[386599138,1758413444515,-489.81,0.00021917,2]
[386599139,1758413444526,-400.0,0.00021917,2]
[386599140,1758413444536,-1048.14,0.00021917,2]
[386599141,1758413444545,-400.0,0.00021917,2]
[386599142,1758413444555,-767.09,0.00021917,2]
[386599143,1758413444564,-400.0,0.00021917,2]
[386599144,1758413444574,-400.0,0.00021917,2]
[386599145,1758413444583,-392.54673815,0.00021917,2]
[386599146,1758413444593,-400.0,0.00021917,2]
[386599147,1758413444602,-1042.22,0.00021917,2]
[386599148,1758413444613,-400.0,0.00021917,2]
[386599149,1758413444623,-1429.38,0.00021917,2]
[386599150,1758413444634,-400.0,0.00021917,2]
[386599151,1758413444644,-2883.83,0.00021917,2]
[386599152,1758413444654,-1256.27,0.00021917,2]
[386599153,1758413444664,-400.0,0.00021917,2]
[386599154,1758413444673,-421.48,0.00021917,2]
[386599155,1758413444683,-772.95,0.00021917,2]
[386599156,1758413444695,-400.0,0.00021917,2]
[386599157,1758413444705,-400.0,0.00021917,2]
[386599158,1758413444715,-400.0,0.00021917,2]
[386599159,1758413444724,-1836.76,0.00021917,2]
[386599160,1758413444734,-400.0,0.00021917,2]
[386599161,1758413444744,-1032.72,0.00021917,2]
[386599162,1758413444754,-510.43,0.00021917,2]
[386599163,1758413444764,-907.89,0.00021917,2]
[386599164,1758413444774,-400.0,0.00021917,2]
[386599165,1758413444784,-1028.91,0.00021917,2]
[386599166,1758413444794,-400.0,0.00021917,2]
[386599167,1758413444803,-424.62,0.00021917,2]
[386599168,1758413444813,-12006.51,0.00021917,2]
[386599169,1758413444823,-400.0,0.00021917,2]
[386599170,1758413444832,-2188.43,0.00021917,2]
[386599171,1758413444843,-400.0,0.00021917,2]
[386599172,1758413444852,-950.4,0.00021917,2]
[386599173,1758413444864,-400.0,0.00021917,2]
[386599174,1758413444873,-1150.84,0.00021917,2]
[386599175,1758413444883,-400.0,0.00021917,2]
[386599176,1758413444893,-400.0,0.00021917,2]
[386599177,1758413444903,-400.0,0.00021917,2]
[386599178,1758413444913,-536.33,0.00021917,2]
[386599179,1758413444922,-3747.42,0.00021917,2]
[386599180,1758413444932,-1292.78,0.00021917,2]
[386599181,1758413444941,-500.0,0.00021917,2]
[386599182,1758413444951,-419.39236358,0.00021917,2]
[386599183,1758413444961,-500.0,0.00021917,2]
[386599184,1758413444970,-400.0,0.00021917,2]
[386599185,1758413444979,-394.47058463,0.00021917,2]
[386599186,1758413444989,-655.43,0.00021917,2]
[386599187,1758413444998,-400.0,0.00021917,2]
[386599188,1758413445008,-401.26692847,0.00021917,2]
[386599189,1758413445018,-412.86,0.00021917,2]
[386599190,1758413445027,-1601.65,0.00021917,2]
[386599191,1758413445037,-400.0,0.00021917,2]
[386599192,1758413445047,-1115.79,0.00021917,2]
[386599193,1758413445056,-543.97,0.00021917,2]
[386599194,1758413445065,-543.97,0.00021917,2]
[386599195,1758413445075,-400.0,0.00021917,2]
[386599196,1758413445084,-910.83,0.00021917,2]
[386599197,1758413445094,-464.04,0.00021917,2]
[386599198,1758413445103,-437.43,0.00021917,2]
[386599199,1758413445114,-400.0,0.00021917,2]
[386599200,1758413445124,-400.0,0.00021917,2]
[386599201,1758413445134,-400.0,0.00021917,2]
[386599202,1758413445143,-7529.77,0.00021917,2]
[386599203,1758413445153,-2031.87,0.00021917,2]
[386599204,1758413445162,-400.0,0.00021917,2]
[386599205,1758413445172,-1000.0,0.00021917,2]
[386599206,1758413445181,-1051.5,0.00021917,2]
[386599207,1758413445191,-944.33,0.00021917,2]
[386599208,1758413445201,-527.56378808,0.00021917,2]
[386599209,1758413445210,-819.86,0.00021917,2]
[386599210,1758413445221,-400.0,0.00021917,2]
[386599211,1758413445231,-449.71923181,0.00021917,2]
[386599212,1758413445242,-563.23,0.00021917,2]
[386599213,1758413445251,-400.0,0.00021917,2]
[386599214,1758413445263,-400.0,0.00021917,2]
[386599215,1758413445272,-400.0,0.00021917,2]
[386599216,1758413445282,-2211.65,0.00021917,2]
[386599217,1758413445291,-1931.08,0.00021917,2]
[386599218,1758413445301,-1095.21,0.00021917,2]
[386599219,1758413445310,-400.0,0.00021917,2]
[386599220,1758413445320,-738.27,0.00021917,2]
[386599221,1758413445329,-400.0,0.00021917,2]
[386599222,1758413445339,-1207.54,0.00021917,2]
[386599223,1758413445348,-1057.92,0.00021917,2]
[386599224,1758413445358,-1409.97,0.00021917,2]
[386599225,1758413445367,-978.21,0.00021917,2]
[386599226,1758413445377,-720.94,0.00021917,2]
[386599227,1758413445387,-400.0,0.00021917,2]
[386599228,1758413445396,-500.0,0.00021917,2]
[386599229,1758413445406,-400.0,0.00021917,2]
[386599230,1758413445415,-500.0,0.00021917,2]
[386599231,1758413445426,-2078.93,0.00021917,2]
[386599232,1758413445437,-346.17,0.00021917,2]
[386599233,1758413445447,-566.49,0.00021917,2]
[386599234,1758413445457,-692.85,0.00021917,2]
[386599235,1758413445468,-3313.71,0.00021917,2]
[386599236,1758413445477,-4246.17,0.00021917,2]
[386599237,1758413445486,-400.0,0.00021917,2]
[386599238,1758413445496,-762.05,0.00021917,2]
[386599239,1758413445506,-400.0,0.00021917,2]
[386599240,1758413445515,-489.75080169,0.00021917,2]
[386599241,1758413445525,-446.24,0.00021917,2]
[386599242,1758413445535,-676.27,0.00021917,2]
[386599243,1758413445544,-7313.29,0.00021917,2]
[386599244,1758413445554,-739.63,0.00021917,2]
[386599245,1758413445564,-400.0,0.00021917,2]
[386599246,1758413445574,-400.0,0.00021917,2]
[386599247,1758413445583,-400.0,0.00021917,2]
[386599248,1758413445593,-400.0,0.00021917,2]
[386599249,1758413445602,-1437.97,0.00021917,2]
[386599250,1758413445613,-400.0,0.00021917,2]
[386599251,1758413445622,-234.15363561,0.00021917,2]
[386599252,1758413445632,-400.0,0.00021917,2]
[386599253,1758413445641,-400.0,0.00021917,2]
[386599254,1758413445650,-420.84,0.00021917,2]
[386599255,1758413445660,-447.31,0.00021917,2]
[386599256,1758413445670,-400.0,0.00021917,2]
[386599257,1758413445679,-1494.69,0.00021917,2]
[386599258,1758413445690,-1987.61,0.00021917,2]
[386599260,1758413445702,-533.05,0.00021917,2]
[386599262,1758413445713,-1025.04,0.00021917,2]
[386599264,1758413445722,-400.0,0.00021917,2]
[386599266,1758413445732,-400.0,0.00021917,2]
[386599268,1758413445743,-2008.9,0.00021917,2]
[386599270,1758413445752,-1055.27,0.00021917,2]
[386599277,1758413446108,-1871.37,0.00021917,2]
[386599278,1758413446124,-740.61,0.00021917,2]
[386599279,1758413446134,-400.0,0.00021917,2]
[386599280,1758413446143,-400.0,0.00021917,2]
[386599281,1758413446153,-627.07,0.00021917,2]
[386599282,1758413446163,-400.0,0.00021917,2]
[386599283,1758413446173,-400.0,0.00021917,2]
[386599284,1758413446182,-400.0,0.00021917,2]
[386599285,1758413446192,-400.0,0.00021917,2]
[386599286,1758413446202,-654.49,0.00021917,2]
[386599287,1758413446211,-555.86,0.00021917,2]
[386599288,1758413446221,-400.0,0.00021917,2]
[386599289,1758413446231,-400.0,0.00021917,2]
[386599290,1758413446240,-798.5,0.00021917,2]
[386599291,1758413446250,-400.0,0.00021917,2]
[386599292,1758413446260,-400.0,0.00021917,2]
[386599293,1758413446270,-400.0,0.00021917,2]
[386599294,1758413446279,-400.0,0.00021917,2]
[386599295,1758413446289,-569.02,0.00021917,2]
[386599296,1758413446298,-400.0,0.00021917,2]
[386599297,1758413446306,-400.0,0.00021917,2]
[386599298,1758413446315,-400.0,0.00021917,2]
[386599299,1758413446325,-400.0,0.00021917,2]
[386599300,1758413446335,-527.79,0.00021917,2]
[386599301,1758413446345,-400.0,0.00021917,2]
[386599302,1758413446355,-404.1253767,0.00021917,2]
[386599303,1758413446365,-400.0,0.00021917,2]
[386599304,1758413446375,-413.76,0.00021917,2]
[386599306,1758413446385,-1053.8,0.00021917,2]
[386599307,1758413446397,-400.0,0.00021917,2]
[386599309,1758413446407,-166.371248,0.00021917,2]
[386599310,1758413446417,-400.0,0.00021917,2]
[386599311,1758413446427,-400.0,0.00021917,2]
[386599313,1758413446437,-736.4,0.00021917,2]
[386599314,1758413446447,-400.0,0.00021917,2]
[386599315,1758413446458,-291.51964996,0.00021917,2]
[386599317,1758413446469,-204.227001,0.00021917,2]
[386599318,1758413446478,-400.0,0.00021917,2]
[386599319,1758413446488,-157.290072,0.00021917,2]
[386599321,1758413446498,-403.09,0.00021917,2]
[386599322,1758413446508,-400.0,0.00021917,2]
[386599323,1758413446519,-1015.92,0.00021917,2]
[386599324,1758413446528,-405.71,0.00021917,2]
[386599325,1758413446538,-500.0,0.00021917,2]
[386599326,1758413446548,-400.0,0.00021917,2]
[386599327,1758413446558,-1244.67,0.00021917,2]
[386599328,1758413446568,-1985.33,0.00021917,2]
[386599329,1758413446579,-400.0,0.00021917,2]
[386599330,1758413446588,-745.09,0.00021917,2]
[386599331,1758413446598,-164.14125,0.00021917,2]
[386599332,1758413446608,-400.0,0.00021917,2]
[386599333,1758413446618,-400.0,0.00021917,2]
[386599336,1758413446627,-400.0,0.00021917,2]
[386599339,1758413446637,-400.0,0.00021917,2]
[386599342,1758413446646,-1396.48,0.00021917,2]
[386599345,1758413446660,-400.0,0.00021917,2]
[386599348,1758413446670,-630.18,0.00021917,2]
[386599350,1758413446679,-165.301298,0.00021917,2]
[386599352,1758413446691,-1672.68,0.00021917,2]
[386599354,1758413446701,-400.0,0.00021917,2]
[386599356,1758413446711,-380.43563082,0.00021917,2]
[386599358,1758413446720,-400.0,0.00021917,2]
[386599360,1758413446730,-2816.61,0.00021917,2]
[386599362,1758413446740,-500.0,0.00021917,2]
[386599364,1758413446749,-825.76,0.00021917,2]
[386599366,1758413446760,-400.0,0.00021917,2]
[386599368,1758413446769,-631.73,0.00021917,2]
[386599370,1758413446779,-625.6,0.00021917,2]
[386599372,1758413446788,-400.0,0.00021917,2]
[386599374,1758413446798,-871.05,0.00021917,2]
[386599376,1758413446807,-500.0,0.00021917,2]
[386599379,1758413446818,-1336.32,0.00021917,2]
[386599381,1758413446827,-1381.69,0.00021917,2]
[386599383,1758413446837,-400.0,0.00021917,2]
[386599385,1758413446847,-400.0,0.00021917,2]
[386599387,1758413446856,-400.0,0.00021917,2]
[386599389,1758413446866,-400.0,0.00021917,2]
[386599391,1758413446875,-404.7085164,0.00021917,2]
[386599393,1758413446885,-400.0,0.00021917,2]
[386599395,1758413446895,-875.85,0.00021917,2]
[386599397,1758413446904,-1528.12,0.00021917,2]
[386599399,1758413446915,-400.0,0.00021917,2]
[386599401,1758413446924,-400.0,0.00021917,2]
[386599403,1758413446933,-400.0,0.00021917,2]
[386599405,1758413446943,-392.73723034,0.00021917,2]
[386599407,1758413446953,-894.39,0.00021917,2]
[386599409,1758413446962,-400.0,0.00021917,2]
[386599411,1758413446972,-9035.69,0.00021917,2]
[386599413,1758413446981,-569.79,0.00021917,2]
[386599415,1758413446991,-400.0,0.00021917,2]
[386599417,1758413447000,-400.0,0.00021917,2]
[386599419,1758413447010,-500.0,0.00021917,2]
[386599421,1758413447020,-1592.3,0.00021917,2]
[386599423,1758413447029,-500.0,0.00021917,2]
[386599425,1758413447038,-500.0,0.00021917,2]
[386599427,1758413447048,-819.17,0.00021917,2]
[386599429,1758413447057,-400.0,0.00021917,2]
[386599431,1758413447067,-400.0,0.00021917,2]
[386599433,1758413447076,-500.0,0.00021917,2]
[386599435,1758413447085,-500.0,0.00021917,2]
[386599437,1758413447098,-1062.72,0.00021917,2]
[386599439,1758413447109,-500.0,0.00021917,2]
[386599441,1758413447119,-500.0,0.00021917,2]
[386599443,1758413447128,-993.93,0.00021917,2]
[386599445,1758413447138,-400.0,0.00021917,2]
[386599447,1758413447147,-526.26848775,0.00021917,2]
[386599449,1758413447157,-3028.75,0.00021917,2]
[386599450,1758413447166,-400.0,0.00021917,2]
[386599451,1758413447175,-400.0,0.00021917,2]
[386599452,1758413447185,-559.95,0.00021917,2]
[386599453,1758413447194,-1650.0,0.00021917,2]
[386599454,1758413447204,-400.0,0.00021917,2]
[386599455,1758413447213,-1624.28,0.00021917,2]
[386599456,1758413447222,-433.01,0.00021917,2]
[386599457,1758413447232,-529.95,0.00021917,2]
[386599458,1758413447242,-639.88,0.00021917,2]
[386599459,1758413447251,-1729.13,0.00021917,2]
[386599460,1758413447261,-400.0,0.00021917,2]
[386599462,1758413447270,-400.0,0.00021917,2]
[386599464,1758413447280,-3328.92,0.00021917,2]
[386599466,1758413447290,-1377.98,0.00021917,2]
[386599468,1758413447300,-400.0,0.00021917,2]
[386599471,1758413447313,-400.0,0.00021917,2]
[386599473,1758413447323,-400.0,0.00021917,2]
[386599474,1758413447333,-400.0,0.00021917,2]
[386599476,1758413447342,-400.0,0.00021917,2]
[386599479,1758413447352,-465.28,0.00021917,2]
[386599480,1758413447362,-789.31,0.00021917,2]
[386599481,1758413447372,-1140.37,0.00021917,2]
[386599482,1758413447382,-400.0,0.00021917,2]
[386599483,1758413447391,-455.89,0.00021917,2]
[386599484,1758413447400,-1821.49,0.00021917,2]
[386599485,1758413447410,-400.0,0.00021917,2]
[386599486,1758413447420,-400.0,0.00021917,2]
[386599487,1758413447429,-1055.93,0.00021917,2]
[386599488,1758413447438,-1947.14,0.00021917,2]
[386599489,1758413447449,-4277.04,0.00021917,2]
[386599490,1758413447460,-400.0,0.00021917,2]
[386599491,1758413447471,-400.0,0.00021917,2]
[386599492,1758413447480,-986.22,0.00021917,2]
[386599493,1758413447490,-400.0,0.00021917,2]
[386599494,1758413447499,-400.0,0.00021917,2]
[386599495,1758413447509,-434.75,0.00021917,2]
[386599496,1758413447519,-1889.11,0.00021917,2]
[386599497,1758413447528,-1041.93,0.00021917,2]
[386599498,1758413447538,-2846.35,0.00021917,2]
[386599499,1758413447548,-840.19,0.00021917,2]
[386599500,1758413447558,-400.0,0.00021917,2]
[386599501,1758413447567,-3388.13,0.00021917,2]
[386599502,1758413447577,-449.88,0.00021917,2]
[386599503,1758413447586,-525.51,0.00021917,2]
[386599504,1758413447596,-400.0,0.00021917,2]
[386599505,1758413447605,-400.0,0.00021917,2]
[386599506,1758413447614,-1086.78,0.00021917,2]
[386599507,1758413447623,-400.0,0.00021917,2]
[386599508,1758413447632,-2656.12,0.00021917,2]
[386599509,1758413447641,-486.8,0.00021917,2]
[386599510,1758413447651,-491.24,0.00021917,2]
[386599511,1758413447661,-180.333379,0.00021917,2]
[386599512,1758413447671,-400.0,0.00021917,2]
[386599513,1758413447683,-400.0,0.00021917,2]
[386599514,1758413447697,-400.0,0.00021917,2]
[386599515,1758413447708,-1834.49,0.00021917,2]
[386599516,1758413447717,-9424.53,0.00021917,2]
[386599517,1758413447728,-973.19,0.00021917,2]
[386599518,1758413447739,-400.0,0.00021917,2]
[386599519,1758413447749,-727.42,0.00021917,2]
[386599520,1758413447759,-1220.6,0.00021917,2]
[386599521,1758413447774,-1181.48,0.00021917,2]
[386599522,1758413447787,-190.442963,0.00021917,2]
[386599523,1758413447799,-400.0,0.00021917,2]
[386599524,1758413447812,-899.3,0.00021917,2]
[386599525,1758413447822,-400.0,0.00021917,2]
[386599526,1758413447833,-400.0,0.00021917,2]
[386599527,1758413447843,-663.45,0.00021917,2]
[386599528,1758413447855,-400.0,0.00021917,2]
[386599529,1758413447867,-400.0,0.00021917,2]
[386599530,1758413447876,-1107.78,0.00021917,2]
[386599531,1758413447887,-400.0,0.00021917,2]
[386599532,1758413447898,-400.0,0.00021917,2]
[386599533,1758413447909,-400.0,0.00021917,2]
[386599534,1758413447920,-159.038501,0.00021917,2]
[386599535,1758413447930,-400.0,0.00021917,2]
[386599536,1758413447940,-1391.47,0.00021917,2]
[386599537,1758413447949,-400.0,0.00021917,2]
[386599538,1758413447958,-400.0,0.00021917,2]
[386599539,1758413447968,-1013.91,0.00021917,2]
[386599540,1758413447979,-2050.19,0.00021917,2]
[386599541,1758413447988,-400.0,0.00021917,2]
[386599542,1758413447998,-1211.06,0.00021917,2]
[386599543,1758413448007,-659.61,0.00021917,2]
[386599544,1758413448017,-645.09,0.00021917,2]
[386599545,1758413448027,-400.0,0.00021917,2]
[386599546,1758413448039,-3067.74,0.00021917,2]
[386599547,1758413448049,-400.0,0.00021917,2]
[386599548,1758413448059,-400.0,0.00021917,2]
[386599549,1758413448068,-400.0,0.00021917,2]
[386599550,1758413448078,-400.0,0.00021917,2]
[386599551,1758413448088,-2088.17,0.00021917,2]
[386599552,1758413448098,-1733.71,0.00021917,2]
[386599553,1758413448107,-510.5,0.00021917,2]
[386599554,1758413448117,-1700.57,0.00021917,2]
[386599555,1758413448127,-400.0,0.00021917,2]
[386599556,1758413448136,-400.0,0.00021917,2]
[386599557,1758413448146,-400.0,0.00021917,2]
[386599558,1758413448156,-7395.2,0.00021917,2]
[386599559,1758413448165,-801.86,0.00021917,2]
[386599560,1758413448175,-2996.15,0.00021917,2]
[386599561,1758413448185,-1657.86,0.00021917,2]
[386599562,1758413448195,-400.0,0.00021917,2]
[386599563,1758413448205,-813.1,0.00021917,2]